bitfinex/quotes_ETHUSD_20250803
["timestamp","ask_amount","ask_price","bid_price","bid_amount"]
[1754223657508,0.03581251,3490.4,3489.7,4.175]
[1754223658034,0.03581251,3490.4,3489.8,4.175]
[1754223658236,40.0,3490.1,3489.1,0.002]
[1754223658394,3.0,3489.8,3489.1,0.002]
[1754223658742,0.03581969,3489.7,3489.1,0.002]
[1754223658900,3.0,3489.2,3489.1,0.002]
[1754223659225,33.03582483,3489.2,3489.1,0.002]
[1754223659460,33.0,3489.2,3489.1,0.002]
[1754223662376,33.55,3489.2,3489.1,0.002]
[1754223662751,42.44483428,3489.2,3489.1,0.002]
[1754223663154,46.91983428,3489.2,3489.1,0.002]
[1754223663341,46.92183428,3489.2,3489.1,0.002]
[1754223663743,46.644,3489.2,3489.1,0.002]
[1754223666170,42.167,3489.2,3489.1,0.002]
[1754223666346,44.919,3489.2,3489.1,0.002]
[1754223669259,44.915,3489.2,3489.1,0.002]
[1754223670069,36.891,3489.2,3489.1,0.002]
[1754223670274,44.363,3489.2,3489.1,0.002]
[1754223671072,44.913,3489.2,3489.1,0.002]
[1754223671789,44.367,3489.2,3489.1,0.002]
[1754223673496,44.6543,3489.2,3489.1,0.002]
[1754223673806,44.366,3489.2,3489.1,0.002]
[1754223674838,40.1783,3489.2,3489.1,0.002]
[1754223675043,44.6553,3489.2,3489.1,0.002]
[1754223675238,40.1783,3489.2,3489.1,0.002]
[1754223675541,14.6553,3489.2,3489.1,0.002]
[1754223676042,14.6563,3489.2,3489.1,0.002]
[1754223676541,11.9043,3489.2,3489.1,0.002]
[1754223676842,4.477,3489.2,3489.1,0.002]
[1754223677618,4.51282483,3489.2,3489.1,0.002]
[1754223677813,9.203,3489.2,3489.1,0.002]
[1754223678413,9.205,3489.2,3489.1,0.002]
[1754223678641,9.206,3489.2,3489.1,0.002]
[1754223678846,9.6667,3489.2,3489.1,0.002]
[1754223681741,5.1877,3489.2,3489.1,0.002]
[1754223681968,9.70052483,3489.2,3489.1,0.002]
[1754223682175,41.5522,3489.2,3489.1,0.002]
[1754223685064,36.5252,3489.2,3489.1,0.002]
[1754223685251,41.0012,3489.2,3489.1,0.002]
[1754223685880,36.5252,3489.2,3489.1,0.002]
[1754223686089,41.0012,3489.2,3489.1,0.002]
[1754223687054,41.5512,3489.2,3489.1,0.002]
[1754223690772,35.0143,3489.2,3489.1,0.002]
[1754223690974,6.4843,3489.2,3489.1,0.002]
[1754223691160,9.4843,3489.2,3489.1,0.002]
[1754223692873,5.0143,3489.2,3489.1,0.002]
[1754223693040,7.7563,3489.2,3489.1,0.5504]
[1754223693445,4.7563,3489.2,3489.1,0.5504]
[1754223694042,0.001,3489.2,3489.1,0.5504]
[1754223696376,0.001,3489.2,3489.1,0.002]
[1754223696576,3.001,3489.2,3489.1,0.002]
[1754223696878,3.4589,3489.2,3489.1,0.002]
[1754223697615,3.001,3489.2,3489.1,0.002]
[1754223698000,0.001,3489.2,3489.1,0.4042]
[1754223698404,0.001,3489.2,3489.1,0.5504]
[1754223698698,0.001,3489.2,3489.1,0.002]
[1754223699414,3.001,3489.2,3489.1,0.002]
[1754223700087,3.001,3489.2,3489.1,0.4042]
[1754223701218,3.001,3489.2,3489.1,0.002]
[1754223703305,3.001,3489.2,3489.1,0.4197]
[1754223703507,3.001,3489.2,3489.1,0.4022]
[1754223703708,3.001,3489.2,3489.1,0.5484]
[1754223703709,0.001,3489.2,3489.1,0.5484]
[1754223707333,0.001,3489.2,3489.1,4.68532683]
[1754223709910,0.001,3489.2,3489.1,5.24498666]
[1754223710111,0.001,3489.2,3489.1,6.6230255]
[1754223710646,0.001,3489.2,3489.1,11.0790255]
[1754223714537,0.001,3489.2,3489.1,11.0770255]
[1754223716117,0.4579,3490.1,3489.7,4.13492683]
[1754223716423,0.4579,3490.1,3489.8,4.86749268]
[1754223716620,0.4579,3490.0,3489.9,4.13492683]
[1754223719518,3.0,3490.7,3489.9,4.13492683]
[1754223719718,0.4624,3490.2,3489.9,4.13492683]
[1754223719948,0.4624,3490.1,3489.9,4.13492683]
[1754223720268,0.4624,3490.1,3490.0,0.90024195]
[1754223721059,0.9181,3490.1,3490.0,0.90024195]
[1754223721359,0.9181,3490.1,3489.9,4.13492683]
[1754223721562,0.9181,3490.0,3489.9,4.13492683]
[1754223723351,0.4624,3490.0,3489.9,4.13492683]
[1754223723549,0.4624,3490.1,3489.9,4.13492683]
[1754223723746,0.4624,3490.1,3489.9,4.99371951]
[1754223724048,3.0,3491.0,3489.9,4.99371951]
[1754223724049,0.4624,3490.0,3489.9,4.99371951]
[1754223724632,0.9181,3490.0,3489.9,4.99371951]
[1754223724823,0.9181,3490.0,3489.9,4.13492683]
[1754223729065,0.9181,3490.0,3489.3,4.13492683]
[1754223729254,0.001,3490.4,3489.4,4.453]
[1754223729557,0.9181,3489.9,3489.4,4.453]
[1754223729855,0.4624,3489.8,3489.4,0.85879268]
[1754223730052,0.001,3490.4,3489.5,9.82952683]
[1754223730435,0.001,3490.4,3489.5,9.28112683]
[1754223730637,0.001,3490.4,3489.7,0.55]
[1754223730836,0.4634,3490.4,3489.8,4.453]
[1754223731253,0.9191,3490.4,3489.9,4.453]
[1754223731454,0.9191,3490.4,3489.5,4.13492683]
[1754223731455,0.95391354,3490.3,3489.5,4.13492683]
[1754223731645,0.9181,3490.2,3489.6,4.453]
[1754223731845,0.001,3490.4,3489.6,4.453]
[1754223732047,0.9181,3490.1,3489.6,4.453]
[1754223732246,0.03681251,3490.4,3489.7,8.58792683]
[1754223732247,0.9181,3490.0,3489.7,8.58792683]
[1754223732449,0.9181,3489.9,3489.7,4.13492683]
[1754223732649,0.4557,3489.8,3488.8,4.13492683]
[1754223732957,0.03581969,3489.7,3488.9,8.58792683]
[1754223733125,0.03581969,3489.7,3488.9,9.44691951]
[1754223733326,0.9181,3489.6,3488.9,9.44691951]
[1754223733566,0.03582175,3489.5,3488.9,9.44691951]
[1754223733752,0.9181,3489.4,3488.9,4.453]
[1754223733948,0.03581559,3490.1,3488.9,8.58792683]
[1754223734146,0.9181,3489.3,3488.9,8.58792683]
[1754223734349,0.9181,3489.2,3488.7,0.002]
[1754223734662,0.4624,3489.1,3488.7,0.002]
[1754223735937,0.4624,3489.0,3488.7,0.002]
[1754223736137,1.726,3489.9,3488.7,0.002]
[1754223736138,0.1,3492.2,3488.7,0.002]
[1754223736337,0.4624,3489.2,3488.7,0.91603268]
[1754223736542,0.9181,3489.1,3488.7,4.455]
[1754223736742,0.9181,3489.0,3488.7,4.455]
[1754223736950,1.726,3489.7,3488.7,4.455]
[1754223737150,0.9181,3488.9,3488.7,4.455]
[1754223737367,0.4624,3488.8,3488.7,4.455]
[1754223737773,0.9181,3488.8,3488.7,0.002]
[1754223739397,0.4624,3488.8,3488.7,0.002]
[1754223739878,0.4624,3488.8,3488.7,4.13692683]
[1754223740051,0.9181,3488.8,3488.7,4.13692683]
[1754223741661,0.4624,3488.8,3488.7,4.13692683]
[1754223743168,0.4624,3489.5,3488.7,4.99611951]
[1754223743361,0.4624,3489.4,3488.8,4.453]
[1754223743750,0.4624,3489.4,3488.9,0.00966127]
[1754223743935,0.4624,3489.3,3488.9,0.00966127]
[1754223744342,0.4624,3489.2,3488.9,0.00966127]
[1754223744553,0.4624,3489.2,3488.8,4.453]
[1754223744768,0.4624,3489.2,3488.8,5.45295195]
[1754223745671,3.0,3490.0,3488.9,4.13492683]
[1754223745873,3.0,3490.2,3489.0,4.13492683]
[1754223746053,0.9181,3489.9,3489.1,4.453]
[1754223746254,0.9181,3489.8,3489.1,4.453]
[1754223746448,30.0,3489.7,3489.1,4.453]
[1754223746649,0.9181,3489.6,3489.0,4.13492683]
[1754223746874,30.0,3489.9,3489.0,4.13492683]
[1754223746875,0.9181,3489.5,3489.0,4.13492683]
[1754223747171,0.9181,3489.4,3489.0,4.13492683]
[1754223747379,0.9181,3489.3,3489.0,4.13492683]
[1754223747585,0.4557,3489.2,3489.0,4.13492683]
[1754223747742,0.9181,3489.2,3489.0,4.13492683]
[1754223748143,3.0,3489.6,3489.0,4.13492683]
[1754223748346,0.9181,3489.1,3489.0,4.13492683]
[1754223749189,0.463,3489.3,3489.0,4.13492683]
[1754223749386,0.4437,3489.5,3489.0,4.13492683]
[1754223749690,0.463,3490.0,3489.1,4.68332683]
[1754223749849,0.4437,3490.2,3489.2,10.04995951]
[1754223750052,0.4437,3490.2,3489.3,0.5484]
[1754223750269,0.4437,3490.2,3489.2,9.50155951]
[1754223750270,0.463,3490.1,3489.2,9.50155951]
[1754223750481,0.4437,3490.0,3489.2,9.50155951]
[1754223750780,0.4437,3490.0,3489.3,1.05064705]
[1754223750781,0.9067,3490.0,3489.3,1.05064705]
[1754223751452,0.4437,3490.5,3489.4,1.0984]
[1754223751690,0.463,3490.6,3489.5,4.453]
[1754223752068,0.463,3490.6,3489.6,1.0984]
[1754223752589,0.463,3490.6,3489.7,0.5484]
[1754223752787,0.463,3490.6,3489.8,5.42163268]
[1754223752990,0.463,3490.6,3489.8,9.55655951]
[1754223753174,0.463,3490.6,3489.9,0.4022]
[1754223754492,0.4437,3490.8,3489.8,9.70275951]
[1754223754813,0.464,3490.4,3489.8,5.10355951]
[1754223754958,0.4437,3490.3,3489.9,4.453]
[1754223755161,0.001,3490.4,3489.9,4.453]
[1754223755457,0.9067,3490.2,3489.9,4.453]
[1754223755652,0.463,3490.1,3489.9,4.453]
[1754223755857,0.463,3490.1,3489.9,5.36679268]
[1754223756663,0.9067,3490.0,3489.9,4.453]
[1754223756886,0.9067,3490.0,3489.0,4.13492683]
[1754223757065,0.9067,3489.9,3489.1,9.04992683]
[1754223757272,0.4437,3489.8,3489.1,9.04992683]
[1754223757473,0.9067,3489.8,3489.1,9.04992683]
[1754223757679,0.9067,3489.8,3489.1,8.58692683]
[1754223757877,0.463,3489.7,3489.2,4.452]
[1754223758098,1.727,3490.4,3489.1,4.99361951]
[1754223758397,0.463,3489.6,3489.3,4.452]
[1754223758618,0.4437,3489.7,3489.3,4.452]
[1754223758770,2.0143,3490.4,3488.7,1.26603]
[1754223758771,0.9067,3489.5,3489.2,4.452]
[1754223759100,0.9067,3489.4,3489.2,4.452]
[1754223759300,0.4437,3489.4,3489.2,4.452]
[1754223759466,0.463,3489.3,3489.2,4.452]
[1754223760807,30.463,3489.9,3489.2,4.8972]
[1754223760992,0.2883,3490.4,3489.2,4.8972]
[1754223760993,0.463,3490.2,3489.3,0.1462]
[1754223761310,0.463,3490.2,3489.4,4.13492683]
[1754223761508,0.463,3490.2,3489.5,4.452]
[1754223761700,0.463,3490.2,3489.6,0.00964601]
[1754223761907,0.463,3490.3,3489.6,0.91449728]
[1754223764294,0.4437,3490.2,3489.6,0.91449728]
[1754223764520,0.463,3490.1,3489.6,0.91449728]
[1754223764804,0.463,3490.0,3489.6,0.91449728]
[1754223765111,0.463,3490.0,3489.7,1.03666241]
[1754223765508,0.463,3489.9,3489.4,4.59792683]
[1754223765693,0.4437,3489.9,3489.5,4.452]
[1754223765887,0.463,3489.8,3489.5,4.452]
[1754223766290,0.463,3489.8,3489.6,4.13492683]
[1754223766712,0.463,3489.8,3489.7,4.452]
[1754223766895,0.001,3490.4,3489.7,4.452]
[1754223767084,0.9067,3490.3,3489.7,4.452]
[1754223767412,0.463,3490.2,3489.7,4.452]
[1754223767612,0.464,3490.4,3489.8,0.00964368]
[1754223767913,0.001,3490.4,3489.8,4.53712683]
[1754223768103,0.001,3490.4,3489.9,4.13492683]
[1754223768409,0.001,3490.4,3490.0,4.452]
[1754223768619,0.001,3490.4,3490.1,4.13492683]
[1754223768915,0.001,3490.4,3490.2,0.91353268]
[1754223769116,0.001,3490.4,3490.3,4.452]
[1754223769500,0.001,3490.4,3490.1,4.13492683]
[1754223769699,0.001,3490.4,3490.2,4.452]
[1754223769920,0.9067,3490.3,3490.2,4.452]
[1754223770626,0.463,3490.3,3490.2,4.452]
[1754223771038,0.001,3490.4,3490.2,4.452]
[1754223772296,0.001,3490.4,3490.2,8.58692683]
[1754223774692,0.9067,3490.3,3490.2,8.58692683]
[1754223775605,0.001,3490.4,3490.2,8.58692683]
[1754223776020,0.463,3490.3,3490.2,4.13492683]
[1754223776485,0.463,3490.3,3490.2,8.58592683]
[1754223776687,0.001,3490.4,3490.2,4.13492683]
[1754223777026,0.001,3490.4,3490.3,4.451]
[1754223777316,0.001,3490.4,3490.3,5.31922788]
[1754223777517,0.001,3490.4,3490.3,5.30959268]
[1754223777706,0.001,3490.4,3490.3,9.99291951]
[1754223778817,0.001,3490.4,3490.3,10.54291951]
[1754223780132,0.001,3490.4,3490.3,5.54351951]
[1754223780332,0.001,3490.4,3490.3,9.99351951]
[1754223780623,0.001,3490.4,3490.3,10.39571951]
[1754223780806,0.001,3490.4,3490.3,10.54191951]
[1754223781396,0.001,3490.4,3490.3,6.09191951]
[1754223781827,0.001,3490.4,3490.3,10.54191951]
[1754223785738,0.001,3490.4,3490.3,10.68511951]
[1754223787793,0.001,3490.4,3490.3,10.79994651]
[1754223788802,0.001,3490.4,3490.3,17.99994651]
[1754223789596,0.001,3490.4,3490.3,17.99894651]
[1754223791515,0.001,3490.4,3490.3,17.99794651]
[1754223793036,0.001,3490.4,3490.3,10.79794651]
[1754223793968,0.001,3490.4,3490.3,6.66301968]
[1754223795179,0.001,3490.4,3490.3,9.66301968]
[1754223799067,0.001,3490.4,3490.3,12.52810291]
[1754223799272,0.001,3490.4,3490.3,9.66301968]
[1754223801065,0.001,3490.4,3490.3,12.52810291]
[1754223801265,0.001,3490.4,3490.3,9.66301968]
[1754223801467,0.001,3490.4,3490.3,12.52810291]
[1754223802383,0.001,3491.6,3490.7,0.55]
[1754223802551,0.001,3491.6,3490.3,0.97341968]
[1754223802874,0.0368002,3491.6,3490.4,4.446]
[1754223803092,0.001,3491.6,3489.7,0.00962531]
[1754223803437,1.726,3491.2,3489.6,0.002]
[1754223803637,1.726,3490.8,3489.2,0.002]
[1754223803838,0.55,3490.9,3489.0,0.002]
[1754223803839,1.726,3490.2,3489.0,0.002]
[1754223804076,3.0,3489.9,3489.1,4.46]
[1754223804293,0.9307,3489.8,3488.5,0.002]
[1754223804572,1.2735165,3489.8,3488.8,4.46]
[1754223804787,0.9307,3489.7,3488.5,4.462]
[1754223804982,0.03582072,3489.6,3488.8,4.461]
[1754223805138,0.9307,3489.5,3488.9,0.0096595]
[1754223805578,0.9307,3489.4,3488.9,0.55]
[1754223805881,0.9307,3489.3,3488.9,0.55]
[1754223806123,30.0,3491.4,3488.9,0.55]
[1754223806385,0.4818,3489.6,3488.9,0.55964261]
[1754223806544,0.4818,3489.6,3489.1,0.55]
[1754223806750,0.4818,3489.6,3489.3,0.55]
[1754223807478,0.4489,3490.0,3489.3,0.55]
[1754223807787,0.4818,3489.9,3489.3,0.55]
[1754223807985,0.4818,3489.9,3489.5,0.55]
[1754223808150,0.4818,3489.9,3489.7,0.55]
[1754223808353,0.4489,3489.8,3489.7,0.55]
[1754223808552,0.9071,3489.8,3489.7,0.55]
[1754223808756,0.9071,3489.8,3489.7,4.68492683]
[1754223808981,0.9071,3489.8,3489.7,5.64974951]
[1754223809648,0.4582,3489.8,3489.7,5.64974951]
[1754223811550,0.9078,3489.8,3489.7,4.13492683]
[1754223811871,0.9078,3489.8,3489.7,8.59492683]
[1754223813181,0.9078,3489.8,3489.7,8.59392683]
[1754223813785,0.9078,3489.8,3489.7,4.459]
[1754223815787,0.9078,3489.8,3489.7,4.456]
[1754223815989,0.4496,3489.8,3489.7,4.456]
[1754223816165,0.9078,3489.8,3489.7,4.456]
[1754223819451,0.4496,3489.8,3489.7,4.456]
[1754223819670,0.9078,3489.8,3489.7,8.59092683]
[1754223820094,0.9078,3489.8,3489.7,9.45001951]
[1754223820095,0.4582,3489.8,3489.7,9.45001951]
[1754223820457,0.4582,3489.8,3489.7,10.00001951]
[1754223821082,0.4506,3490.4,3489.7,10.00001951]
[1754223821287,0.4582,3490.3,3489.7,10.00001951]
[1754223823597,0.4496,3490.2,3489.8,4.449]
[1754223823897,0.4582,3490.1,3489.7,4.13492683]
[1754223824087,0.4582,3490.1,3489.9,4.449]
[1754223824267,0.4496,3490.0,3489.9,4.449]
[1754223824680,0.9078,3490.0,3489.9,4.449]
[1754223828982,0.001,3490.4,3489.9,4.449]
[1754223829181,0.4582,3490.3,3489.9,4.449]
[1754223829416,0.001,3490.4,3489.9,4.449]
[1754223829613,0.4582,3490.2,3489.9,4.449]
[1754223830420,0.9078,3490.1,3489.3,4.13492683]
[1754223830604,0.4582,3490.0,3489.4,4.87701268]
[1754223831116,0.4582,3490.0,3489.5,4.13492683]
[1754223831316,0.4496,3489.9,3489.5,8.58392683]
[1754223831686,0.9078,3489.8,3489.5,4.13492683]
[1754223831892,0.001,3490.0,3489.6,4.449]
[1754223832087,0.9078,3489.7,3489.6,4.449]
[1754223832517,0.9078,3489.7,3489.2,0.002]
[1754223832717,0.9078,3489.6,3489.2,0.002]
[1754223833044,0.9078,3489.5,3489.2,0.002]
[1754223833261,0.9078,3489.4,3489.2,0.002]
[1754223833559,0.9078,3489.3,3489.2,0.002]
[1754223844293,0.4328,3490.0,3489.2,0.002]
[1754223844591,0.4328,3490.0,3489.2,0.4561]
[1754223844592,0.4667,3489.7,3489.2,0.4561]
[1754223844760,0.4667,3489.6,3489.2,0.002]
[1754223844961,0.4667,3489.5,3489.2,0.002]
[1754223845177,0.4667,3489.7,3489.2,0.002]
[1754223845393,0.4318,3489.9,3489.3,4.58902683]
[1754223845558,0.001,3490.0,3489.4,0.50687268]
[1754223845755,0.4667,3489.8,3489.3,4.13492683]
[1754223845969,0.4318,3489.7,3489.3,4.13492683]
[1754223846493,0.8985,3489.6,3489.3,4.13492683]
[1754223846695,0.93432175,3489.5,3489.3,4.13492683]
[1754223847007,0.8985,3489.4,3489.3,4.13492683]
[1754223847707,0.8985,3489.4,3489.3,4.08492683]
[1754223848494,0.4667,3489.7,3489.3,4.08492683]
[1754223848815,0.4667,3489.6,3489.3,4.08492683]
[1754223848957,0.4318,3489.6,3489.3,4.08492683]
[1754223849159,0.4667,3489.5,3489.2,0.002]
[1754223849361,0.8985,3489.5,3489.2,0.002]
[1754223849595,0.4667,3489.4,3489.2,0.002]
[1754223850065,0.4667,3489.7,3489.2,0.002]
[1754223850771,0.4667,3489.6,3489.2,0.002]
[1754223850955,0.4677,3490.0,3489.3,0.9318]
[1754223852901,0.001,3490.0,3489.4,0.9318]
[1754223853401,0.001,3490.0,3489.4,4.08492683]
[1754223853593,0.001,3490.0,3489.5,5.01672683]
[1754223854104,0.001,3490.0,3489.6,0.9318]
[1754223854502,0.001,3490.0,3489.6,1.87837268]
[1754223854729,0.001,3490.0,3489.6,0.94657268]
[1754223854871,0.001,3490.0,3489.7,0.9318]
[1754223855405,0.001,3490.0,3489.8,0.9318]
[1754223855567,0.001,3490.0,3489.9,0.18783727]
[1754223855768,0.001,3490.0,3489.9,0.4541]
[1754223856764,0.001,3490.0,3489.7,0.4777]
[1754223856970,0.001,3490.0,3489.7,4.449]
[1754223857470,0.001,3490.0,3489.7,4.9031]
[1754223858192,0.001,3490.0,3489.7,4.449]
[1754223858786,0.001,3490.0,3489.7,4.9031]
[1754223859578,0.001,3490.0,3489.7,5.3808]
[1754223859779,0.001,3490.0,3489.7,6.32737268]
[1754223860391,0.001,3490.0,3489.8,0.9318]
[1754223860879,0.001,3490.0,3489.8,0.4777]
[1754223861080,0.001,3490.0,3489.9,0.4541]
[1754223861276,0.001,3490.0,3489.9,0.9318]
[1754223862821,0.001,3490.0,3489.9,0.4541]
[1754223864187,0.001,3490.0,3489.9,0.9318]
[1754223864386,0.001,3490.0,3489.9,1.97302995]
[1754223866115,0.001,3490.0,3489.9,1.49532995]
[1754223867834,0.001,3490.0,3489.9,1.97302995]
[1754223868298,0.001,3490.0,3489.9,1.49532995]
[1754223868697,0.001,3490.0,3489.9,1.98402995]
[1754223869800,0.001,3490.0,3489.9,1.04122995]
[1754223869996,0.001,3490.0,3489.8,4.08492683]
[1754223869997,0.4919,3490.0,3489.8,4.08492683]
[1754223870232,0.4544,3490.0,3489.9,4.447]
[1754223870803,0.9453,3490.0,3489.9,4.447]
[1754223871333,0.9453,3490.0,3489.8,8.53192683]
[1754223871698,0.4909,3489.9,3489.8,8.53192683]
[1754223874410,0.9443,3489.9,3489.8,8.53192683]
[1754223875137,0.4909,3489.9,3489.8,8.53192683]
[1754223877950,0.9443,3489.9,3489.8,4.08492683]
[1754223878247,0.9443,3489.9,3489.4,4.447]
[1754223878407,0.9443,3489.8,3489.3,4.449]
[1754223878616,0.9443,3489.7,3489.3,4.449]
[1754223879238,0.56683,3489.9,3489.3,4.449]
[1754223879440,0.9443,3489.6,3489.3,4.449]
[1754223879648,0.4909,3489.5,3489.3,4.449]
[1754223879838,0.9443,3489.4,3489.3,0.002]
[1754223880035,0.98012277,3489.4,3489.3,0.002]
[1754223880342,1.79810395,3489.4,3489.3,0.002]
[1754223880550,1.76228118,3489.4,3489.3,0.002]
[1754223881651,0.4909,3489.4,3489.3,0.002]
[1754223881858,0.9443,3489.4,3489.3,0.002]
[1754223882464,0.98012277,3489.4,3489.3,0.002]
[1754223882652,0.9443,3489.4,3489.3,0.002]
[1754223882857,0.98012277,3489.4,3489.3,0.002]
[1754223883528,3.98012277,3489.4,3489.3,0.002]
[1754223883728,33.98012277,3489.4,3489.3,0.002]
[1754223883923,33.9443,3489.4,3489.3,0.002]
[1754223885859,35.6673,3489.4,3489.3,0.002]
[1754223886451,40.1143,3489.4,3489.3,0.002]
[1754223888354,40.1133,3489.4,3489.3,0.002]
[1754223890690,7.446,3489.4,3489.3,0.002]
[1754223891187,7.9369,3489.4,3489.3,0.002]
[1754223893190,7.446,3489.4,3489.3,0.002]
[1754223893389,3.0,3489.4,3489.3,0.002]
[1754223893689,1.301455,3489.6,3489.3,0.9282]
[1754223893847,1.301455,3489.6,3489.4,0.50247831]
[1754223894195,1.301455,3489.6,3489.4,0.9262]
[1754223894549,1.301455,3489.6,3489.5,0.9262]
[1754223897667,1.302455,3489.6,3489.5,0.9262]
[1754223899107,1.302455,3489.6,3489.5,5.01112683]
[1754223901598,1.302455,3489.6,3489.5,5.56112683]
[1754223901913,1.302455,3489.6,3489.5,6.26180476]
[1754223902099,1.302455,3489.6,3489.5,10.70580476]
[1754223909699,1.302455,3489.6,3489.5,5.33560476]
[1754223910011,1.302455,3489.6,3489.5,10.20970476]
[1754223913529,1.302455,3489.6,3489.5,10.70860476]
[1754223916824,1.302455,3489.6,3489.5,10.20970476]
[1754223917448,1.302455,3489.6,3489.5,9.22660476]
[1754223918026,1.302455,3489.6,3489.5,9.08340476]
[1754223919524,1.302455,3489.6,3489.5,10.01340476]
[1754223919935,0.001,3490.0,3489.5,10.56340476]
[1754223920146,0.001,3490.0,3489.6,2.54618827]
[1754223920363,0.001,3490.0,3489.8,0.6932]
[1754223920663,0.001,3490.0,3489.9,9.08557113]
[1754223920869,0.001,3490.0,3489.9,5.4221]
[1754223921042,0.001,3490.0,3489.9,6.07384341]
[1754223921238,0.001,3490.0,3489.9,7.23330107]
[1754223923873,0.001,3490.0,3489.9,2.79230107]
[1754223924247,0.001,3490.0,3489.9,7.23230107]
[1754223924770,0.001,3490.0,3489.9,7.70800107]
[1754223926056,0.001,3490.0,3489.9,2.33800107]
[1754223926250,0.4767,3490.0,3489.9,5.1332]
[1754223926648,0.4767,3490.0,3489.9,0.6932]
[1754223926852,0.001,3490.0,3489.3,0.002]
[1754223927166,0.001,3490.0,3489.7,0.1432]
[1754223927376,0.001,3490.0,3489.8,4.439]
[1754223927564,0.001,3490.0,3489.9,0.45822]
[1754223927767,0.4767,3490.0,3489.9,0.45822]
[1754223928636,0.9346,3490.0,3489.9,0.45822]
[1754223930971,0.9346,3490.0,3489.9,4.89722]
[1754223931575,0.4767,3490.0,3489.9,4.89722]
[1754223932785,0.4767,3490.0,3489.9,0.45822]
[1754223932991,0.9346,3490.0,3489.9,4.439]
[1754223933465,0.9346,3490.0,3489.7,0.1432]
[1754223933674,0.001,3490.0,3489.9,4.438]
[1754223934377,0.4581,3490.0,3489.9,4.44764341]
[1754223934676,0.4581,3490.0,3489.9,4.438]
[1754223934892,0.916,3490.0,3489.9,4.89708434]
[1754223935078,0.916,3490.0,3489.9,0.45908434]
[1754223935279,0.916,3490.0,3489.7,0.1432]
[1754223935481,0.001,3490.0,3489.9,4.438]
[1754223935847,0.001,3490.0,3489.7,0.1432]
[1754223936070,0.915,3489.9,3489.8,4.438]
[1754223937448,0.001,3490.0,3489.8,4.438]
[1754223937679,0.001,3490.0,3489.9,0.4438]
[1754223937888,0.4589,3490.0,3489.9,0.4438]
[1754223938245,0.916,3490.0,3489.9,0.4438]
[1754223939251,0.916,3490.0,3489.3,0.01164507]
[1754223939450,0.4571,3489.9,3489.4,4.438]
[1754223939772,0.4579,3489.8,3489.4,4.438]
[1754223939973,0.001,3490.0,3489.5,0.4442]
[1754223940286,0.4579,3489.7,3489.5,0.4442]
[1754223941684,0.001,3490.0,3489.3,0.002]
[1754223941886,0.001,3490.0,3489.4,4.437]
[1754223942411,0.4571,3489.9,3489.4,4.437]
[1754223942704,0.915,3489.9,3489.4,4.437]
[1754223943000,0.4571,3489.8,3489.4,4.437]
[1754223943193,0.4571,3489.8,3489.5,0.48729]
[1754223943903,0.4571,3489.8,3489.6,0.00964957]
[1754223944076,0.4571,3489.8,3489.7,4.437]
[1754223944770,0.915,3489.8,3489.7,4.437]
[1754223945808,0.915,3489.8,3489.5,0.48729]
[1754223945972,0.001,3490.0,3489.5,0.48729]
[1754223946172,0.915,3489.7,3489.6,4.437]
[1754223946498,0.915,3489.7,3489.6,4.929629]
[1754223947288,0.4571,3489.7,3489.6,4.929629]
[1754223948717,0.915,3489.9,3489.6,4.929629]
[1754223949096,0.4579,3489.9,3489.6,4.929629]
[1754223949395,0.4571,3489.8,3489.7,0.00964751]
[1754223949593,0.001,3490.0,3489.7,0.55230416]
[1754223949798,0.001,3490.0,3489.8,4.08492683]
[1754223949799,0.4571,3489.9,3489.8,4.08492683]
[1754223950118,0.001,3490.0,3489.8,8.52192683]
[1754223950315,0.4581,3490.0,3489.8,8.52192683]
[1754223950519,0.4581,3490.0,3489.9,0.81486846]
[1754223951286,0.001,3490.0,3489.9,0.81486846]
[1754223951832,0.4581,3490.0,3489.9,0.81486846]
[1754223952329,0.001,3490.0,3489.9,0.81486846]
[1754223952482,0.001,3490.0,3489.9,0.82451187]
[1754223953486,0.001,3490.0,3489.9,5.8186387]
[1754223953686,0.001,3490.0,3489.9,5.80899529]
[1754223953890,0.001,3490.0,3489.9,5.88169529]
[1754223954180,0.001,3490.0,3489.9,6.50219529]
[1754223956084,0.4101,3490.7,3490.0,0.55]
[1754223956285,0.4101,3490.7,3490.1,9.66984636]
[1754223956489,0.4101,3490.7,3490.1,9.81304636]
[1754223957033,0.4579,3491.3,3490.3,0.55]
[1754223957186,0.4579,3491.3,3490.4,4.5782]
[1754223957392,0.4579,3491.3,3490.5,1.01223268]
[1754223957693,0.4579,3491.3,3490.6,4.435]
[1754223957909,0.4579,3491.3,3490.6,5.3442]
[1754223958103,0.4571,3491.1,3490.6,5.3442]
[1754223959324,0.4591,3491.0,3490.6,4.435]
[1754223960340,0.4436,3491.1,3490.6,4.435]
[1754223960541,0.9027,3490.7,3490.4,4.22812683]
[1754223960694,0.9027,3490.6,3490.5,4.434]
[1754223961541,2.07457625,3491.5,3490.5,4.434]